fUST/lending_fUST_20251020
["ID","MTS","AMOUNT","RATE_DAILY","PERIOD"]
[391872045,1760939438535,-500.0,0.00038356,30]
[391872046,1760939438544,-500.0,0.00038356,30]
[391872047,1760939438554,-500.0,0.00038356,30]
[391872048,1760939438564,-500.0,0.00038356,30]
[391872049,1760939438573,-500.0,0.00038356,30]
[391872050,1760939438582,-500.0,0.00038356,30]
[391872051,1760939438591,-500.0,0.00038356,30]
[391872052,1760939438601,-500.0,0.00038356,30]
[391872053,1760939438610,-500.0,0.00038356,30]
[391872054,1760939438620,-500.0,0.00038356,30]
[391872055,1760939438630,-500.0,0.00038356,30]
[391872056,1760939438639,-500.0,0.00038356,30]
[391872057,1760939438649,-500.0,0.00038356,30]
[391872058,1760939438658,-500.0,0.00038356,30]
[391872059,1760939438668,-500.0,0.00038356,30]
[391872060,1760939438678,-500.0,0.00038356,30]
[391872061,1760939438691,-500.0,0.00038356,30]
[391872062,1760939438701,-500.0,0.00038356,30]
[391872063,1760939438710,-434.57606492,0.00038356,30]
[391872064,1760939438719,-500.0,0.00038356,30]
[391872065,1760939438729,-504.64407588,0.00038356,30]
[391872066,1760939438738,-500.0,0.00038356,14]
[391872067,1760939438748,-517.55404266,0.00038356,14]
[391872068,1760939438757,-500.0,0.00038356,30]
[391872069,1760939438767,-500.0,0.00038356,30]
[391872070,1760939438776,-599.69310416,0.00038356,30]
[391872071,1760939438786,-500.0,0.00038356,30]
[391872072,1760939438795,-500.0,0.00038356,30]
[391872073,1760939438804,-500.0,0.00038356,30]
[391872074,1760939438814,-500.0,0.00038356,30]
[391872075,1760939438823,-500.0,0.00038356,30]
[391872076,1760939438832,-500.0,0.00038356,30]
[391872077,1760939438842,-500.0,0.00038356,30]
[391872078,1760939438851,-500.0,0.00038356,30]
[391872079,1760939438860,-500.0,0.00038356,30]
[391872080,1760939438869,-500.0,0.00038356,30]
[391872081,1760939438879,-500.0,0.00038356,30]
[391872082,1760939438889,-500.0,0.00038356,30]
[391872083,1760939438899,-500.0,0.00038356,30]
[391872084,1760939438909,-500.0,0.00038356,30]
[391872085,1760939438919,-500.0,0.00038356,30]
[391872086,1760939438928,-640.74020311,0.00038356,30]
[391872087,1760939438938,-404.81164294,0.00038356,30]
[391872088,1760939438948,-386.10381121,0.00038356,30]
[391872089,1760939438957,-500.0,0.00038356,30]
[391872090,1760939438967,-507.0742596,0.00038356,30]
[391872091,1760939438976,-504.53716906,0.00038356,30]
[391872092,1760939438987,-502.76013261,0.00038356,30]
[391872093,1760939438997,-281.39740796,0.00038356,30]
[391872094,1760939439007,-629.76710721,0.00038356,30]
[391872095,1760939439017,-500.0,0.00038356,30]
[391872096,1760939439028,-500.0,0.00038356,30]
[391872097,1760939439038,-508.1688678,0.00038356,30]
[391872098,1760939439047,-500.0,0.00038356,30]
[391872099,1760939439057,-423.39331046,0.00038356,30]
[391872100,1760939439067,-500.0,0.00038356,30]
[391872101,1760939439077,-500.0,0.00038356,30]
[391872102,1760939439086,-441.96,0.00038356,30]
[391872103,1760939439096,-507.9269952,0.00038356,30]
[391872104,1760939439106,-502.70478236,0.00038356,30]
[391872105,1760939439116,-500.74726042,0.00038356,30]
[391872106,1760939439126,-500.0,0.00038356,30]
[391872107,1760939439135,-500.0,0.00038356,30]
[391872108,1760939439145,-501.3497488,0.00038356,30]
[391872109,1760939439154,-513.9842932,0.00038356,30]
[391872110,1760939439164,-1000.0,0.00038356,2]
[391872111,1760939439174,-501.00149985,0.00038356,30]
[391872112,1760939439183,-502.42040153,0.00038356,30]
[391872113,1760939439194,-501.6719308,0.00038356,30]
[391872114,1760939439203,-504.67287333,0.00038356,30]
[391872115,1760939439212,-503.17080891,0.00038356,30]
[391872116,1760939439222,-500.0,0.00038356,30]
[391872117,1760939439231,-507.58460575,0.00038356,30]
[391872118,1760939439241,-504.99853789,0.00038356,30]
[391872119,1760939439250,-502.42663717,0.00038356,30]
[391872120,1760939439261,-325.16471763,0.00038356,30]
[391872121,1760939439271,-500.0,0.00038356,30]
[391872122,1760939439282,-500.0,0.00038356,30]
[391872123,1760939439292,-500.0,0.00038356,30]
[391872124,1760939439302,-500.0,0.00038356,30]
[391872125,1760939439314,-500.0,0.00038356,30]
[391872126,1760939439323,-500.0,0.00038356,30]
[391872127,1760939439334,-500.0,0.00038356,30]
[391872128,1760939439344,-500.0,0.00038356,30]
[391872130,1760939439354,-500.0,0.00038356,30]
[391872131,1760939439365,-500.0,0.00038356,30]
[391872132,1760939439376,-500.0,0.00038356,30]
[391872133,1760939439385,-222.47287362,0.00038356,30]
[391872134,1760939439396,-500.0,0.00038356,30]
[391872135,1760939439405,-550.65113198,0.00038356,30]
[391872136,1760939439418,-500.0,0.00038356,30]
[391872137,1760939439427,-500.82508676,0.00038356,30]
[391872138,1760939439437,-502.93148915,0.00038356,30]
[391872139,1760939439447,-504.60951124,0.00038356,30]
[391872140,1760939439457,-501.38231072,0.00038356,30]
[391872141,1760939439467,-503.42993723,0.00038356,30]
[391872142,1760939439478,-502.7472323,0.00038356,30]
[391872143,1760939439489,-504.00600716,0.00038356,30]
[391872144,1760939439498,-500.0,0.00038356,30]
[391872148,1760939439627,-510.51779816,0.00038356,30]
[391872149,1760939439639,-502.83097595,0.00038356,30]
[391872150,1760939439648,-502.22033231,0.00038356,30]
[391872151,1760939439658,-500.0,0.00038356,30]
[391872152,1760939439667,-500.0,0.00038356,30]
[391872153,1760939439676,-500.0,0.00038356,30]
[391872154,1760939439687,-500.0,0.00038356,30]
[391872155,1760939439697,-500.0,0.00038356,30]
[391872156,1760939439706,-500.0,0.00038356,30]
[391872158,1760939439715,-502.71805984,0.00038356,30]
[391872160,1760939439724,-500.0,0.00038356,30]
[391872162,1760939439734,-500.0,0.00038356,30]
[391872164,1760939439743,-500.0,0.00038356,30]
[391872165,1760939439752,-339.39559355,0.00038356,30]
[391872166,1760939439763,-500.70478399,0.00038356,30]
[391872167,1760939439772,-275.55450501,0.00038356,30]
[391872168,1760939439781,-501.43004239,0.00038356,30]
[391872169,1760939439791,-502.13764109,0.00038356,30]
[391872170,1760939439800,-506.99227238,0.00038356,30]
[391872171,1760939439810,-501.92845025,0.00038356,30]
[391872172,1760939439819,-500.0,0.00038356,30]
[391872173,1760939439828,-501.09525737,0.00038356,30]
[391872174,1760939439838,-239.67181119,0.00038356,30]
[391872175,1760939439847,-45.95876255,0.00038356,30]
[391872176,1760939439874,-454.04123745,0.00038356,30]
[391872177,1760939439884,-495.21448045,0.00038356,30]
[391872178,1760939439893,-548.9329225,0.00038356,30]
[391872179,1760939439903,-443.70650114,0.00038356,30]
[391872180,1760939439912,-293.56275813,0.00038356,30]
[391872181,1760939439921,-500.0,0.00038356,30]
[391872182,1760939439930,-354.01141074,0.00038356,30]
[391872183,1760939439942,-150.46465545,0.00038356,30]
[391872184,1760939439951,-500.0,0.00038356,30]
[391872185,1760939439961,-500.0,0.00038356,30]
[391872186,1760939439970,-500.0,0.00038356,30]
[391872187,1760939439980,-409.43219201,0.00038356,30]
[391872188,1760939439990,-188.86604343,0.00038356,30]
[391872189,1760939440001,-500.0,0.00038356,30]
[391872190,1760939440015,-504.41330343,0.00038356,30]
[391872191,1760939440028,-209.43373602,0.00038356,30]
[391872192,1760939440037,-500.0,0.00038356,30]
[391872193,1760939440046,-500.0,0.00038356,30]
[391872194,1760939440055,-461.6076702,0.00038356,30]
[391872195,1760939440064,-500.0,0.00038356,30]
[391872196,1760939440073,-500.0,0.00038356,30]
[391872197,1760939440081,-500.0,0.00038356,30]
[391872198,1760939440090,-500.0,0.00038356,30]
[391872199,1760939440099,-500.0,0.00038356,30]
[391872201,1760939440109,-500.0,0.00038356,30]
[391872203,1760939440119,-500.0,0.00038356,30]
[391872204,1760939440128,-500.0,0.00038356,30]
[391872205,1760939440137,-503.66667434,0.00038356,30]
[391872206,1760939440147,-500.0,0.00038356,30]
[391872207,1760939440158,-500.0,0.00038356,30]
[391872208,1760939440168,-500.0,0.00038356,30]
[391872209,1760939440177,-500.7119741,0.00038356,30]
[391872210,1760939440187,-255.47481698,0.00038356,30]
[391872211,1760939440198,-500.0,0.00038356,30]
[391872212,1760939440207,-502.76294101,0.00038356,30]
[391872213,1760939440217,-500.0,0.00038356,30]
[391872214,1760939440226,-500.0,0.00038356,30]
[391872215,1760939440236,-524.58988764,0.00038356,30]
[391872216,1760939440246,-501.19639917,0.00038356,30]
[391872217,1760939440255,-500.0,0.00038356,30]
[391872218,1760939440265,-500.0,0.00038356,30]
[391872219,1760939440277,-500.0,0.00038356,30]
[391872220,1760939440287,-416.17525626,0.00038356,30]
[391872221,1760939440299,-164.12428821,0.00038356,30]
[391872222,1760939440309,-500.0,0.00038356,30]
[391872223,1760939440320,-306.52787186,0.00038356,30]
[391872224,1760939440330,-500.34363524,0.00038356,30]
[391872225,1760939440342,-502.71683895,0.00038356,30]
[391872226,1760939440353,-500.0,0.00038356,30]
[391872227,1760939440364,-500.0,0.00038356,30]
[391872228,1760939440374,-500.0,0.00038356,30]
[391872229,1760939440384,-594.8565053,0.00038356,30]
[391872230,1760939440394,-500.97928054,0.00038356,30]
[391872231,1760939440403,-500.0,0.00038356,30]
[391872232,1760939440414,-500.0,0.00038356,30]
[391872233,1760939440424,-500.0,0.00038356,30]
[391872234,1760939440434,-407.49099325,0.00038356,30]
[391872235,1760939440445,-500.50995956,0.00038356,30]
[391872236,1760939440455,-500.0,0.00038356,30]
[391872237,1760939440464,-208.21213617,0.00038356,30]
[391872238,1760939440473,-500.0,0.00038356,30]
[391872239,1760939440482,-612.30854237,0.00038356,30]
[391872240,1760939440491,-491.63078617,0.00038356,30]
[391872241,1760939440501,-501.33695407,0.00038356,30]
[391872242,1760939440510,-491.881548,0.00038356,30]
[391872243,1760939440520,-500.0,0.00038356,30]
[391872244,1760939440533,-501.72958478,0.00038356,30]
[391872245,1760939440542,-500.0,0.00038356,30]
[391872246,1760939440553,-356.19188027,0.00038356,30]
[391872247,1760939440562,-500.34205242,0.00038356,30]
[391872248,1760939440575,-500.0,0.00038356,30]
[391872249,1760939440585,-500.0,0.00038356,30]
[391872250,1760939440595,-500.0,0.00038356,30]
[391872251,1760939440604,-500.0,0.00038356,30]
[391872252,1760939440615,-620.05487279,0.00038356,30]
[391872253,1760939440624,-450.91774731,0.00038356,30]
[391872254,1760939440634,-500.0,0.00038356,30]
[391872255,1760939440643,-500.0,0.00038356,30]
[391872256,1760939440653,-379.99469837,0.00038356,30]
[391872257,1760939440662,-500.0,0.00038356,30]
[391872258,1760939440671,-500.0,0.00038356,30]
[391872259,1760939440681,-500.0,0.00038356,30]
[391872260,1760939440697,-502.47112956,0.00038356,30]
[391872261,1760939440706,-500.0,0.00038356,30]
[391872262,1760939440717,-513.16892331,0.00038356,30]
[391872263,1760939440726,-511.15376222,0.00038356,30]
[391872264,1760939440738,-500.0,0.00038356,30]
[391872265,1760939440747,-500.0,0.00038356,30]
[391872266,1760939440757,-500.0,0.00038356,30]
[391872267,1760939440767,-500.0,0.00038356,30]
[391872268,1760939440777,-397.4431371,0.00038356,30]
[391872269,1760939440787,-261.25,0.00038356,30]
[391872270,1760939440797,-162.02840177,0.00038356,30]
[391872271,1760939440807,-500.0,0.00038356,30]
[391872272,1760939440817,-500.0,0.00038356,30]
[391872273,1760939440827,-500.0,0.00038356,30]
[391872274,1760939440836,-496.58025351,0.00038356,30]
[391872275,1760939440846,-500.0,0.00038356,30]
[391872276,1760939440856,-500.0,0.00038356,30]
[391872277,1760939440867,-535.56,0.00038356,30]
[391872278,1760939440876,-500.0,0.00038356,30]
[391872279,1760939440886,-500.0,0.00038356,30]
[391872280,1760939440895,-500.0,0.00038356,30]
[391872281,1760939440903,-500.0,0.00038356,30]
[391872282,1760939440913,-508.78241854,0.00038356,30]
[391872283,1760939440922,-500.0,0.00038356,30]
[391872284,1760939440931,-500.0,0.00038356,30]
[391872285,1760939440941,-500.0,0.00038356,30]
[391872286,1760939440952,-500.0,0.00038356,30]
[391872287,1760939440961,-471.9569234,0.00038356,30]
[391872288,1760939440970,-500.0,0.00038356,30]
[391872289,1760939440981,-500.0,0.00038356,30]
[391872290,1760939440992,-500.0,0.00038356,30]
[391872291,1760939441001,-500.0,0.00038356,30]
[391872292,1760939441010,-500.0,0.00038356,30]
[391872293,1760939441019,-500.0,0.00038356,30]
[391872294,1760939441029,-500.0,0.00038356,30]
[391872295,1760939441038,-480.91001046,0.00038356,30]
[391872296,1760939441047,-500.0,0.00038356,30]
[391872297,1760939441057,-500.0,0.00038356,30]
[391872298,1760939441066,-313.0,0.00038356,30]
[391872299,1760939441075,-500.0,0.00038356,30]
[391872300,1760939441084,-500.0,0.00038356,30]
[391872301,1760939441094,-501.41458571,0.00038356,30]
[391872302,1760939441103,-500.0,0.00038356,30]
[391872303,1760939441113,-500.0,0.00038356,30]
[391872304,1760939441123,-500.0,0.00038356,30]
[391872305,1760939441132,-301.00363303,0.00038356,30]
[391872306,1760939441142,-500.0,0.00038356,2]
[391872307,1760939441151,-500.0,0.00038356,30]
[391872308,1760939441160,-482.72100371,0.00038356,30]
[391872309,1760939441170,-500.0,0.00038356,30]
[391872310,1760939441179,-500.0,0.00038356,30]
[391872311,1760939441188,-500.0,0.00038356,30]
[391872312,1760939441198,-500.0,0.00038356,30]
[391872313,1760939441207,-284.40463045,0.00038356,30]
[391872314,1760939441216,-235.80295792,0.00038356,30]
[391872315,1760939441226,-500.0,0.00038356,30]
[391872316,1760939441235,-500.0,0.00038356,30]
[391872317,1760939441245,-500.0,0.00038356,30]
[391872318,1760939441254,-500.0,0.00038356,30]
[391872319,1760939441263,-544.56520604,0.00038356,30]
[391872320,1760939441272,-349.30052344,0.00038356,30]
[391872321,1760939441281,-500.0,0.00038356,30]
[391872322,1760939441290,-501.13462124,0.00038356,30]
[391872323,1760939441299,-500.0,0.00038356,30]
[391872324,1760939441308,-239.50747893,0.00038356,30]
[391872325,1760939441318,-500.0,0.00038356,30]
[391872326,1760939441327,-226.58767364,0.00038356,30]
[391872327,1760939441336,-500.0,0.00038356,30]
[391872328,1760939441345,-500.0,0.00038356,30]
[391872329,1760939441354,-512.80094886,0.00038356,30]
[391872330,1760939441363,-500.0,0.00038356,30]
[391872331,1760939441372,-464.02,0.00038356,30]
[391872332,1760939441382,-500.0,0.00038356,30]
[391872333,1760939441391,-492.39482735,0.00038356,30]
[391872334,1760939441400,-501.26358322,0.00038356,30]
[391872335,1760939441410,-500.52008247,0.00038356,30]
[391872336,1760939441419,-503.88167661,0.00038356,30]
[391872337,1760939441428,-504.40641753,0.00038356,30]
[391872338,1760939441437,-500.0,0.00038356,30]
[391872339,1760939441447,-500.0,0.00038356,2]
[391872340,1760939441456,-500.0,0.00038356,30]
[391872341,1760939441464,-500.0,0.00038356,2]
[391872342,1760939441474,-500.0,0.00038356,2]
[391872343,1760939441483,-500.0,0.00038356,2]
[391872344,1760939441492,-240.69,0.00038356,2]
[391872345,1760939441502,-500.0,0.00038356,30]
[391872346,1760939441511,-500.0,0.00038356,30]
[391872347,1760939441520,-500.0,0.00038356,30]
[391872348,1760939441529,-500.0,0.00038356,30]
[391872349,1760939441538,-522.15,0.00038356,30]
[391872350,1760939441548,-500.0,0.00038356,30]
[391872351,1760939441557,-200.0,0.00038356,30]
[391872352,1760939441566,-500.18472206,0.00038356,30]
[391872353,1760939441575,-507.45950388,0.00038356,30]
[391872354,1760939441585,-500.0,0.00038356,30]
[391872355,1760939441594,-500.0,0.00038356,30]
[391872356,1760939441603,-500.0,0.00038356,30]
[391872357,1760939441612,-500.0,0.00038356,30]
[391872358,1760939441621,-500.0,0.00038356,30]
[391872359,1760939441631,-500.0,0.00038356,30]
[391872360,1760939441640,-500.0,0.00038356,30]
[391872361,1760939441649,-500.0,0.00038356,30]
[391872362,1760939441658,-500.0,0.00038356,30]
[391872363,1760939441667,-500.0,0.00038356,30]
[391872364,1760939441677,-500.0,0.00038356,30]
[391872365,1760939441691,-420.71792972,0.00038356,30]
[391872366,1760939441701,-500.0,0.00038356,30]
[391872367,1760939441710,-500.0,0.00038356,30]
[391872368,1760939441719,-500.0,0.00038356,30]
[391872369,1760939441729,-500.0,0.00038356,30]
[391872370,1760939441738,-503.1083142,0.00038356,30]
[391872371,1760939441747,-344.97421832,0.00038356,30]
[391872372,1760939441757,-502.4393364,0.00038356,30]
[391872373,1760939441766,-500.28719238,0.00038356,30]
[391872374,1760939441775,-526.27,0.00038356,30]
[391872375,1760939441785,-502.81223041,0.00038356,30]
[391872376,1760939441794,-500.0,0.00038356,30]
[391872377,1760939441802,-500.0,0.00038356,30]
[391872378,1760939441811,-500.0,0.00038356,30]
[391872379,1760939441820,-576.91932274,0.00038356,30]
[391872380,1760939441829,-500.0,0.00038356,30]
[391872381,1760939441838,-500.0,0.00038356,30]
[391872382,1760939441848,-230.59,0.00038356,30]
[391872383,1760939441857,-500.0,0.00038356,30]
[391872384,1760939441866,-495.29071754,0.00038356,30]
[391872385,1760939441876,-500.0,0.00038356,30]
[391872386,1760939441887,-500.0,0.00038356,30]
[391872387,1760939441899,-500.0,0.00038356,30]
[391872388,1760939441908,-500.0,0.00038356,30]
[391872389,1760939441919,-633.56015833,0.00038356,30]
[391872390,1760939441931,-500.0,0.00038356,30]
[391872391,1760939441941,-500.0,0.00038356,30]
[391872392,1760939441950,-500.0,0.00038356,30]
[391872393,1760939441960,-500.0,0.00038356,30]
[391872394,1760939441970,-500.0,0.00038356,30]
[391872395,1760939441983,-273.65200447,0.00038356,30]
[391872396,1760939441992,-500.0,0.00038356,30]
[391872397,1760939442002,-500.0,0.00038356,30]
[391872398,1760939442012,-407.41,0.00038356,30]
[391872399,1760939442021,-501.66115641,0.00038356,30]
[391872400,1760939442030,-500.0,0.00038356,30]
[391872401,1760939442040,-484.27354132,0.00038356,30]
[391872402,1760939442048,-502.36370192,0.00038356,30]
[391872403,1760939442057,-500.0,0.00038356,30]
[391872404,1760939442066,-501.92681014,0.00038356,30]
[391872405,1760939442075,-350.4683464,0.00038356,30]
[391872406,1760939442084,-167.84534344,0.00038356,30]
[391872407,1760939442094,-500.0,0.00038356,30]
[391872408,1760939442105,-500.0,0.00038356,30]
[391872409,1760939442116,-500.0,0.00038356,30]
[391872410,1760939442126,-500.0,0.00038356,30]
[391872411,1760939442137,-500.0,0.00038356,30]
[391872412,1760939442149,-500.0,0.00038356,30]
[391872413,1760939442158,-500.0,0.00038356,30]
[391872414,1760939442167,-500.0,0.00038356,30]
[391872415,1760939442176,-500.0,0.00038356,30]
[391872416,1760939442185,-500.0,0.00038356,30]
[391872417,1760939442194,-500.0,0.00038356,30]
[391872418,1760939442204,-500.0,0.00038356,30]
[391872419,1760939442216,-500.0,0.00038356,30]
[391872420,1760939442226,-500.0,0.00038356,30]
[391872421,1760939442235,-500.0,0.00038356,30]
[391872422,1760939442244,-500.0,0.00038356,30]
[391872423,1760939442254,-500.0,0.00038356,30]
[391872424,1760939442264,-500.0,0.00038356,30]
[391872425,1760939442274,-500.0,0.00038356,30]
[391872426,1760939442285,-519.77,0.00038356,30]
[391872427,1760939442295,-500.66109766,0.00038356,30]
[391872428,1760939442305,-502.8044767,0.00038356,30]
[391872429,1760939442315,-500.0,0.00038356,30]
[391872430,1760939442323,-500.0,0.00038356,30]
[391872431,1760939442332,-500.0,0.00038356,30]
[391872432,1760939442341,-500.0,0.00038356,30]
[391872433,1760939442349,-506.21517225,0.00038356,30]
[391872434,1760939442358,-534.56937762,0.00038356,30]
[391872435,1760939442367,-500.0,0.00038356,30]
[391872437,1760939442375,-500.0,0.00038356,30]
[391872444,1760939442491,-392.67,0.00038356,30]
[391872445,1760939442502,-500.0,0.00038356,30]
[391872446,1760939442515,-500.0,0.00038356,30]
[391872447,1760939442524,-500.0,0.00038356,30]
[391872449,1760939442533,-500.0,0.00038356,30]
[391872450,1760939442543,-500.0,0.00038356,2]
[391872451,1760939442553,-500.0,0.00038356,2]
[391872452,1760939442569,-500.0,0.00038356,2]
[391872453,1760939442580,-500.0,0.00038356,2]
[391872454,1760939442590,-519.58,0.00038356,2]
[391872455,1760939442601,-505.31189445,0.00038356,30]
[391872456,1760939442610,-500.0,0.00038356,30]
[391872457,1760939442620,-500.0,0.00038356,30]
[391872458,1760939442629,-500.0,0.00038356,30]
[391872459,1760939442639,-500.0,0.00038356,30]
[391872461,1760939442648,-500.0,0.00038356,30]
[391872462,1760939442658,-500.0,0.00038356,30]
[391872463,1760939442667,-500.0,0.00038356,30]
[391872464,1760939442676,-500.0,0.00038356,30]
[391872465,1760939442690,-500.0,0.00038356,30]
[391872466,1760939442700,-445.89,0.00038356,30]
[391872467,1760939442709,-307.3,0.00038356,30]
[391872468,1760939442719,-500.0,0.00038356,30]
[391872469,1760939442730,-608.39665049,0.00038356,30]
[391872470,1760939442739,-500.0,0.00038356,30]
[391872471,1760939442748,-500.45888089,0.00038356,30]
[391872473,1760939442757,-500.0,0.00038356,30]
[391872474,1760939442767,-500.0,0.00038356,30]
[391872476,1760939442776,-500.0,0.00038356,30]
[391872477,1760939442785,-159.58,0.00038356,30]
[391872478,1760939442795,-500.0,0.00038356,30]
[391872479,1760939442804,-500.0,0.00038356,30]
[391872480,1760939442814,-500.0,0.00038356,30]
[391872481,1760939442825,-500.0,0.00038356,30]
[391872482,1760939442835,-500.0,0.00038356,30]
[391872483,1760939442846,-500.0,0.00038356,30]
[391872484,1760939442855,-500.0,0.00038356,30]
[391872485,1760939442866,-776.1774,0.00038356,120]
[391872486,1760939442875,-776.1774,0.00038356,120]
[391872487,1760939442885,-776.1774,0.00038356,120]
[391872488,1760939442896,-776.1774,0.00038356,120]
[391872489,1760939442908,-776.1774,0.00038356,120]
[391872490,1760939442918,-776.1774,0.00038356,120]
[391872491,1760939442929,-776.1774,0.00038356,120]
[391872492,1760939442940,-500.0,0.00038356,30]
[391872493,1760939442950,-500.29190962,0.00038356,30]
[391872494,1760939442960,-500.0,0.00038356,30]
[391872495,1760939442970,-776.1774,0.00038356,120]
[391872496,1760939442981,-500.0,0.00038356,30]
[391872497,1760939442991,-776.1774,0.00038356,120]
[391872498,1760939443000,-500.0,0.00038356,30]
[391872499,1760939443010,-500.0,0.00038356,30]
[391872500,1760939443019,-507.66781779,0.00038356,30]
[391872501,1760939443030,-776.1774,0.00038356,120]
[391872502,1760939443040,-502.21226212,0.00038356,30]
[391872503,1760939443050,-776.1774,0.00038356,120]
[391872504,1760939443059,-776.1774,0.00038356,120]
[391872505,1760939443069,-500.0,0.00038356,30]
[391872506,1760939443079,-500.0,0.00038356,30]
[391872507,1760939443088,-500.0,0.00038356,30]
[391872508,1760939443097,-224.78125927,0.00038356,30]
[391872509,1760939443107,-500.0,0.00038356,30]
[391872510,1760939443116,-505.67596016,0.00038356,30]
[391872511,1760939443126,-500.0,0.00038356,30]
[391872512,1760939443136,-500.0,0.00038356,30]
[391872513,1760939443146,-504.34307239,0.00038356,30]
[391872514,1760939443155,-500.0,0.00038356,30]
[391872515,1760939443165,-500.0,0.00038356,30]
[391872516,1760939443174,-500.0,0.00038356,30]
[391872517,1760939443184,-508.83371995,0.00038356,30]
[391872518,1760939443194,-500.0,0.00038356,30]
[391872519,1760939443205,-500.0,0.00038356,30]
[391872520,1760939443216,-509.0662609,0.00038356,30]
[391872521,1760939443226,-620.45,0.00038356,30]
[391872522,1760939443236,-500.0,0.00038356,30]
[391872523,1760939443247,-502.72514654,0.00038356,30]
[391872524,1760939443263,-500.0,0.00038356,30]
[391872525,1760939443276,-509.49338503,0.00038356,30]
[391872526,1760939443285,-500.0,0.00038356,30]
[391872527,1760939443294,-500.0,0.00038356,30]
[391872528,1760939443303,-500.0,0.00038356,30]
[391872529,1760939443312,-500.0,0.00038356,30]
[391872530,1760939443322,-500.78628107,0.00038356,30]
[391872531,1760939443332,-500.0,0.00038356,30]
[391872532,1760939443341,-445.33823986,0.00038356,30]
[391872533,1760939443350,-509.81923351,0.00038356,30]
[391872534,1760939443359,-500.0,0.00038356,30]
[391872535,1760939443368,-500.0,0.00038356,30]
[391872536,1760939443377,-500.0,0.00038356,30]
[391872537,1760939443387,-405.14785272,0.00038356,30]
[391872538,1760939443396,-507.67310448,0.00038356,30]
[391872539,1760939443405,-500.0,0.00038356,30]
[391872540,1760939443414,-500.0,0.00038356,30]
[391872541,1760939443423,-500.0,0.00038356,30]
[391872542,1760939443433,-500.0,0.00038356,30]
[391872543,1760939443443,-500.0,0.00038356,30]
[391872544,1760939443453,-500.0,0.00038356,30]
[391872545,1760939443462,-500.0,0.00038356,30]
[391872546,1760939443472,-465.88351411,0.00038356,30]
[391872547,1760939443481,-500.0,0.00038356,30]
[391872548,1760939443491,-500.0,0.00038356,30]
[391872549,1760939443500,-621.94973942,0.00038356,30]
[391872550,1760939443510,-500.0,0.00038356,30]
[391872551,1760939443522,-508.93771928,0.00038356,30]
[391872552,1760939443531,-500.0,0.00038356,30]
[391872553,1760939443540,-509.16451871,0.00038356,30]
[391872554,1760939443550,-500.0,0.00038356,30]
[391872555,1760939443559,-500.0,0.00038356,30]
[391872556,1760939443568,-184.44,0.00038356,30]
[391872557,1760939443577,-500.0,0.00038356,30]
[391872558,1760939443587,-500.0,0.00038356,30]
[391872559,1760939443596,-531.58274869,0.00038356,30]
[391872560,1760939443605,-500.0,0.00038356,30]
[391872561,1760939443614,-500.0,0.00038356,30]
[391872562,1760939443624,-500.0,0.00038356,30]
[391872563,1760939443633,-290.42463556,0.00038356,30]
[391872564,1760939443643,-500.0,0.00038356,30]
[391872565,1760939443653,-500.0,0.00038356,30]